bitfinex-derivatives/quotes_ETHF0:USTF0_20250926
["timestamp","ask_amount","ask_price","bid_price","bid_amount"]
[1758851558509,0.55904167,3940.3,3940.2,0.81701]
[1758851558800,0.55943747,3940.6,3940.3,0.81699]
[1758851559008,0.3621,3940.4,3940.3,0.81699]
[1758851559207,0.92153758,3940.4,3940.3,0.81699]
[1758851560615,0.0253,3940.8,3940.3,0.81699]
[1758851560616,0.0253,3940.8,3940.7,0.45646]
[1758851560802,0.0253,3940.8,3940.7,0.81696]
[1758851561003,0.58477955,3940.8,3940.7,0.81696]
[1758851561705,0.0253,3940.8,3940.7,0.81696]
[1758851564813,0.59231,3942.0,3941.6,0.3605]
[1758851565011,0.55924712,3941.9,3941.5,0.45637]
[1758851565207,0.3621,3941.7,3941.6,0.3605]
[1758851565413,0.92134712,3941.7,3941.6,0.3605]
[1758851565615,0.55924712,3941.7,3941.6,0.6265]
[1758851565915,0.3621,3942.7,3942.1,0.3605]
[1758851566212,0.3621,3942.5,3942.3,0.45627]
[1758851566406,0.55906575,3942.4,3942.3,0.81677]
[1758851566606,0.92116575,3942.4,3942.3,0.81677]
[1758851566809,0.55906575,3942.4,3942.3,0.81677]
[1758851567523,0.266,3943.3,3943.0,0.45619]
[1758851567812,0.3621,3943.1,3943.0,0.81669]
[1758851568011,0.92034011,3943.1,3943.0,0.81669]
[1758851569212,0.92034011,3943.1,3942.8,0.45621]
[1758851569417,0.3621,3942.9,3942.8,0.3605]
[1758851569607,0.3621,3942.6,3941.8,0.45632]
[1758851569804,0.70774011,3942.5,3942.1,0.3605]
[1758851570012,0.55824011,3942.4,3942.0,0.4563]
[1758851570216,0.3621,3942.2,3942.1,0.3605]
[1758851570614,0.3621,3942.1,3941.4,0.45638]
[1758851570915,0.3621,3941.9,3941.4,0.45638]
[1758851571112,0.55578395,3941.8,3941.4,0.45638]
[1758851571315,0.3621,3941.6,3941.4,0.45638]
[1758851571517,0.3621,3941.9,3941.4,0.45638]
[1758851571717,0.55587895,3941.8,3941.4,0.45638]
[1758851572015,0.3621,3941.6,3941.4,0.45638]
[1758851572215,0.1495,3942.0,3941.5,0.45636]
[1758851572516,0.3621,3941.8,3941.5,0.45636]
[1758851572712,0.3621,3941.6,3941.5,0.45636]
[1758851572913,0.91797373,3941.6,3941.5,0.45636]
[1758851573420,0.55587373,3941.6,3941.3,0.45639]
[1758851573717,0.3621,3941.4,3941.3,0.81689]
[1758851573920,0.3621,3941.4,3941.3,0.45639]
[1758851574312,0.55620667,3941.4,3941.1,0.45641]
[1758851574517,0.3621,3941.2,3941.1,0.81691]
[1758851574718,0.91830667,3941.2,3941.1,0.81691]
[1758851575309,0.55620667,3941.2,3941.1,0.81691]
[1758851575509,0.55649407,3941.8,3941.2,0.45639]
[1758851575719,0.55649407,3941.8,3941.0,0.1438]
[1758851575720,0.55649407,3941.7,3941.0,0.1438]
[1758851575918,0.1495,3942.0,3941.2,0.45639]
[1758851575919,0.55649407,3941.6,3941.2,0.45639]
[1758851576122,0.3621,3941.4,3941.2,0.45639]
[1758851576423,0.91859407,3941.3,3941.2,0.81689]
[1758851577718,0.55649407,3941.3,3940.5,40.9438]
[1758851577915,0.3621,3941.1,3940.5,40.9438]
[1758851578121,0.1495,3941.5,3940.9,0.45643]
[1758851578323,0.3621,3941.3,3940.9,0.45643]
[1758851578518,0.55668338,3941.2,3940.9,0.45643]
[1758851578723,0.55668338,3941.2,3940.0,0.1438]
[1758851578724,0.3621,3940.9,3940.3,0.266]
[1758851578927,0.3621,3940.7,3940.6,0.45646]
[1758851579123,0.9189005,3940.7,3940.6,0.81696]
[1758851579430,0.91889579,3940.7,3940.6,0.81696]
[1758851580420,0.55679579,3940.7,3940.6,0.81696]
[1758851580616,0.3408,3941.6,3940.7,0.3611]
[1758851580815,0.1495,3942.0,3940.7,0.3611]
[1758851580816,0.2457,3940.8,3940.7,1.05536]
[1758851581018,0.8245,3940.8,3940.7,0.5989]
[1758851581431,0.5865,3941.4,3941.3,0.4609]
[1758851581627,0.5865,3941.4,3941.3,0.822]
[1758851581826,0.5865,3941.4,3940.5,1.28091]
[1758851581827,0.4837,3941.8,3941.7,0.2378]
[1758851582152,0.2457,3941.8,3941.7,0.822]
[1758851582320,0.3408,3942.4,3941.5,0.4057]
[1758851582516,0.60519,3943.0,3941.5,0.4057]
[1758851582517,0.14597446,3943.3,3942.7,0.3611]
[1758851582714,0.45616,3943.4,3942.7,0.45622]
[1758851582922,0.3408,3943.2,3942.7,0.45622]
[1758851583125,0.49237679,3943.3,3942.8,0.3611]
[1758851583317,0.60774679,3943.3,3942.6,0.45623]
[1758851583718,0.3408,3943.2,3942.6,0.45623]
[1758851584022,0.15157679,3943.3,3942.7,0.45622]
[1758851584233,0.60514,3943.5,3942.7,0.45622]
[1758851584726,0.81876,3943.4,3942.6,0.3589]
[1758851584920,0.81876,3943.4,3942.6,0.81513]
[1758851585120,0.3626,3943.2,3942.6,0.81513]
[1758851585326,2.17595867,3943.8,3943.1,0.45617]
[1758851585520,0.149,3944.0,3943.4,0.45615]
[1758851585720,0.149,3944.0,3943.6,0.45611]
[1758851585721,0.3626,3943.9,3943.6,0.45611]
[1758851586020,0.3626,3943.9,3943.8,0.3589]
[1758851586427,0.29920358,3944.4,3943.8,0.3589]
[1758851586629,0.29920358,3944.4,3943.6,0.45611]
[1758851586929,0.3626,3944.2,3943.8,0.4561]
[1758851587229,0.3626,3944.2,3944.0,0.3589]
[1758851587419,0.45250164,3944.4,3943.5,0.1384]
[1758851587420,0.66180358,3944.4,3943.6,0.3589]
[1758851588120,0.66180358,3944.4,3943.5,0.1384]
[1758851588121,0.6286,3944.4,3944.3,0.81494]
[1758851588430,0.3626,3944.9,3944.1,0.3589]
[1758851588731,0.149,3945.0,3943.8,0.4561]
[1758851589028,0.149,3945.0,3943.0,0.1384]
[1758851589029,0.3626,3944.1,3943.2,0.3589]
[1758851589229,0.1432,3944.0,3943.4,0.45614]
[1758851589420,0.81873,3943.6,3942.9,0.3589]
[1758851589620,0.3626,3943.4,3942.6,0.45624]
[1758851589837,0.3626,3943.4,3942.8,0.45621]
[1758851590037,0.3626,3943.9,3943.2,0.3589]
[1758851590222,0.3626,3943.9,3943.3,0.45615]
[1758851590527,0.3626,3943.9,3943.2,0.3589]
[1758851590734,0.59929,3944.0,3942.8,0.81511]
[1758851590735,0.4561,3943.8,3942.8,0.81511]
[1758851590920,0.3626,3943.6,3942.8,0.81511]
[1758851591230,0.3626,3943.4,3942.8,0.3589]
[1758851591627,0.3626,3943.9,3943.2,0.45616]
[1758851591932,0.1432,3944.5,3943.3,0.3589]
[1758851592131,0.45605,3944.3,3943.3,0.3589]
[1758851592430,0.1432,3944.0,3943.3,0.81505]
[1758851592624,0.3626,3943.8,3943.3,0.81505]
[1758851592930,0.91549412,3943.7,3943.5,0.3589]
[1758851593133,0.55289412,3943.6,3943.5,0.3589]
[1758851593328,0.55289412,3943.6,3943.5,0.81503]
[1758851593633,0.55289412,3943.6,3943.5,0.95343]
[1758851594320,0.55289412,3943.6,3943.5,5.95343]
[1758851594520,0.72201,3944.7,3944.0,0.59447]
[1758851594831,0.55274147,3944.6,3944.4,0.3589]
[1758851595033,0.55274147,3944.5,3944.4,0.3589]
[1758851595728,0.55274147,3944.5,3944.1,0.3589]
[1758851595924,0.3626,3944.3,3944.1,0.3589]
[1758851596128,0.91534147,3944.2,3944.1,0.3589]
[1758851596934,0.55274147,3944.2,3944.1,0.3589]
[1758851597130,0.14969087,3945.0,3944.1,0.3589]
[1758851597322,0.5521366,3944.9,3944.1,0.3589]
[1758851597520,0.5521366,3944.8,3944.5,0.45602]
[1758851597724,0.5521366,3944.7,3944.6,0.3589]
[1758851599430,0.9147366,3944.7,3944.1,0.3589]
[1758851599640,0.45595,3945.1,3943.7,0.3589]
[1758851599641,0.5058,3944.5,3943.7,0.3589]
[1758851599823,0.1432,3945.0,3944.2,0.45604]
[1758851599824,0.55894764,3944.4,3944.2,0.45604]
[1758851600024,0.3626,3944.7,3944.2,0.45604]
[1758851600224,0.55889474,3944.6,3944.2,0.45604]
[1758851600437,0.55889474,3944.5,3944.3,0.3589]
[1758851600748,0.92149474,3944.4,3944.3,0.3589]
[1758851602524,0.0253,3944.8,3944.3,0.3589]
[1758851602728,0.0253,3944.8,3944.7,0.8149]
[1758851605130,0.3626,3945.5,3944.9,0.3589]
[1758851605339,0.3626,3945.3,3944.8,0.45598]
[1758851605532,0.3626,3945.3,3944.9,0.3589]
[1758851605736,0.3626,3945.3,3944.8,0.45598]
[1758851606034,0.45589,3945.7,3944.9,0.3589]
[1758851606230,0.5991,3945.5,3944.9,0.3589]
[1758851606427,0.55838189,3945.4,3944.9,0.3589]
[1758851606627,0.55838189,3945.4,3944.8,0.45598]
[1758851606828,0.92098189,3945.4,3944.9,0.3589]
[1758851607038,0.3626,3945.2,3944.9,0.3589]
[1758851607229,0.3626,3945.2,3945.0,0.3589]
[1758851607429,0.5991,3945.5,3945.0,0.3589]
[1758851607631,0.55865078,3945.4,3944.9,0.3589]
[1758851607927,0.5991,3945.5,3944.8,0.45598]
[1758851607928,0.55865078,3945.3,3945.0,0.3589]
[1758851608128,0.92125078,3945.2,3944.9,0.3589]
[1758851608329,0.0253,3945.6,3945.5,0.1384]
[1758851608528,0.0253,3945.6,3945.5,0.4973]
[1758851608529,0.58412508,3945.6,3945.5,0.4973]
[1758851611429,0.58468383,3945.6,3945.5,0.4973]
[1758851612130,0.3562,3946.7,3945.5,5.1384]
[1758851612342,0.3562,3946.7,3946.6,0.3279]
[1758851612542,0.3562,3946.9,3946.7,0.3279]
[1758851612740,0.1432,3947.0,3946.7,0.3279]
[1758851612942,0.3562,3947.4,3946.8,0.3279]
[1758851613143,0.3562,3947.4,3946.5,0.1401]
[1758851613144,0.3562,3947.4,3946.6,0.3279]
[1758851613449,0.3562,3947.4,3947.1,0.3279]
[1758851613740,0.1432,3947.5,3946.9,0.45573]
[1758851614047,0.3562,3947.5,3947.0,0.1401]
[1758851614241,0.60437913,3947.7,3947.0,0.1401]
[1758851614438,0.81187,3947.6,3947.0,0.468]
[1758851615040,0.3562,3947.6,3947.0,0.92372]
[1758851615443,0.3562,3947.6,3947.2,0.3279]
[1758851615643,0.3562,3947.6,3947.1,0.45571]
[1758851615846,0.3562,3947.6,3947.2,0.3279]
[1758851616146,0.47763,3947.9,3947.1,0.3279]
[1758851616147,0.3562,3947.7,3947.1,0.3279]
[1758851616544,0.81185,3947.7,3947.1,0.3279]
[1758851617235,0.1372,3947.0,3945.5,0.1384]
[1758851617439,0.3562,3946.4,3945.6,0.3469]
[1758851617639,0.3562,3946.4,3945.6,0.80279]
[1758851617847,0.3562,3946.4,3945.7,40.8]
[1758851618141,0.1372,3946.5,3945.7,40.8]
[1758851618446,0.45586,3945.9,3945.3,0.266]
[1758851618741,0.45586,3945.9,3945.1,0.3279]
[1758851618742,0.81208,3945.7,3945.0,41.268]
[1758851618941,0.45587,3945.8,3945.0,41.1279]
[1758851619137,0.1372,3946.0,3945.3,0.45593]
[1758851619361,0.45588,3945.7,3945.0,0.1401]
[1758851619534,0.1372,3946.0,3945.0,0.3279]
[1758851619535,0.3562,3945.6,3945.0,0.3279]
[1758851619748,0.1372,3946.5,3945.0,0.3279]
[1758851619749,0.3562,3946.1,3945.3,0.3279]
[1758851620055,0.59305,3946.0,3945.3,0.3279]
[1758851620342,0.3562,3945.9,3945.3,0.3279]
[1758851620746,0.81207,3945.9,3945.3,0.3279]
[1758851621757,0.3562,3945.7,3945.1,0.3279]
[1758851621942,0.45594,3945.2,3944.8,41.1279]
[1758851622143,0.1372,3945.0,3944.5,0.3279]
[1758851622554,0.3562,3944.9,3944.5,0.3279]
[1758851622754,0.3562,3944.8,3944.2,0.266]
[1758851623259,0.81219,3944.8,3944.2,0.266]
[1758851624158,0.55731597,3944.7,3944.2,0.266]
[1758851624359,0.3562,3944.5,3944.3,0.3279]
[1758851624662,0.55731597,3944.4,3944.3,0.78394]
[1758851625052,0.45592,3945.4,3944.7,0.3279]
[1758851625251,0.55736818,3945.3,3944.6,0.456]
[1758851625460,0.91356818,3945.2,3944.7,0.3279]
[1758851625661,0.91356818,3945.2,3944.5,0.1401]
[1758851625662,0.3562,3944.8,3944.1,0.3279]
[1758851625959,0.3562,3944.8,3944.1,0.78396]
[1758851625960,0.3562,3944.6,3944.1,0.78396]
[1758851626155,0.45599,3944.8,3944.2,0.3279]
[1758851626156,0.3562,3944.4,3944.2,0.3279]
[1758851626356,0.55736818,3944.3,3944.2,0.3279]
[1758851626660,0.4934,3944.5,3943.9,0.78399]
[1758851626861,0.3562,3944.3,3944.0,0.45607]
[1758851627160,0.55736818,3944.2,3944.1,0.3279]
[1758851627361,0.55736818,3944.2,3944.0,0.59617]
[1758851627362,0.55736818,3944.6,3944.0,4.88728655]
[1758851627568,0.55736818,3944.5,3944.1,0.3279]
[1758851627762,0.45595,3945.1,3944.5,0.59611]
[1758851627957,0.5570448,3945.0,3944.5,0.59611]
[1758851628154,0.5570448,3944.9,3944.6,0.3279]
[1758851628355,0.5570448,3944.8,3944.5,0.59611]
[1758851628664,0.5570448,3944.7,3944.6,0.3279]
[1758851629058,0.5570448,3945.0,3944.6,0.3279]
[1758851629260,0.3562,3944.8,3944.1,0.3279]
[1758851629455,0.5570448,3944.7,3944.3,0.3279]
[1758851629663,0.5570448,3944.6,3944.3,0.3279]
[1758851629961,0.4934,3945.0,3944.6,0.3279]
[1758851629962,0.1372,3945.0,3944.6,0.3279]
[1758851630164,0.3562,3944.8,3944.6,0.3279]
[1758851630363,0.91332315,3944.7,3944.6,0.3279]
[1758851632061,0.55712315,3944.7,3944.6,0.3279]
[1758851632362,0.3562,3944.8,3944.4,0.266]
[1758851632567,0.55731543,3944.7,3944.1,0.3279]
[1758851632768,0.3562,3944.4,3944.2,0.72204]
[1758851632963,0.55736225,3944.3,3944.2,0.266]
[1758851633160,0.55736225,3944.3,3944.2,0.5939]
[1758851633861,0.55736225,3944.3,3944.2,1.04995]
[1758851635069,0.3562,3944.7,3944.6,0.45601]
[1758851635368,0.55724306,3944.7,3944.4,0.45603]
[1758851635666,0.1372,3945.0,3944.5,0.3279]
[1758851635667,0.55724306,3944.6,3944.5,0.3279]
[1758851635862,0.55724306,3944.6,3944.5,0.45601]
[1758851636161,0.3562,3944.7,3944.6,0.3279]
[1758851636365,0.91340549,3944.7,3944.6,0.3279]
[1758851637168,0.55720549,3944.7,3944.6,5.07508655]
[1758851637368,0.3562,3945.5,3945.3,0.45593]
[1758851637569,0.55706212,3945.4,3945.3,0.78383]
[1758851638072,0.91326212,3945.4,3945.3,0.78383]
[1758851638261,0.55706212,3945.4,3945.3,0.78383]
[1758851639165,0.91326212,3945.4,3945.0,0.1401]
[1758851639373,0.1372,3945.5,3945.2,0.45593]
[1758851639574,0.3562,3945.3,3945.2,0.78383]
[1758851639770,0.3562,3945.5,3945.4,0.3279]
[1758851639970,0.3562,3945.5,3944.9,0.3279]
[1758851640270,0.5570292,3945.4,3945.0,0.1385]
[1758851640472,0.3453,3945.6,3945.5,0.3564]
[1758851640772,0.88826325,3945.6,3945.5,0.3564]
[1758851641067,0.88826325,3945.6,3945.0,0.45595]
[1758851641068,0.1409,3945.5,3945.0,0.45595]
[1758851641274,0.3313,3945.3,3945.0,0.45595]
[1758851641475,0.1409,3945.5,3945.0,0.45595]
[1758851641771,0.1409,3945.5,3944.6,41.1564]
[1758851641772,0.3313,3945.3,3944.9,0.45597]
[1758851641959,0.55701214,3945.2,3944.9,0.45597]
[1758851642167,0.3313,3945.4,3945.0,0.45595]
[1758851642370,0.1409,3945.5,3944.5,0.1401]
[1758851642371,0.3313,3944.9,3944.5,0.265]
[1758851642675,0.1372,3946.0,3945.2,0.3564]
[1758851642676,0.3313,3945.7,3945.2,0.3564]
[1758851642970,0.1372,3946.0,3944.8,0.45598]
[1758851642971,0.3313,3945.4,3944.8,0.45598]
[1758851643180,0.3313,3945.2,3944.9,0.3564]
[1758851643472,0.3313,3945.0,3944.9,0.3564]
[1758851643670,0.3313,3945.4,3944.9,0.81237]
[1758851643968,0.3287,3946.5,3946.3,0.3549]
[1758851644172,0.16408449,3946.6,3946.3,0.3549]
[1758851644374,0.3287,3946.4,3945.8,0.3549]
[1758851644575,0.3287,3946.4,3945.8,0.81076]
[1758851644773,0.1323,3946.5,3945.8,0.81076]
[1758851645073,0.3287,3946.4,3945.7,0.45587]
[1758851645277,0.3287,3946.4,3945.6,40.8]
[1758851645278,0.3287,3946.4,3945.8,0.45586]
[1758851647162,0.3287,3946.4,3945.5,40.9318]
[1758851647476,0.354,3946.9,3946.1,0.3549]
[1758851647677,0.0253,3946.9,3946.4,0.45579]
[1758851647868,0.0253,3946.9,3946.5,0.3549]
[1758851648174,0.3287,3946.8,3946.5,0.45578]
[1758851648367,0.3287,3946.8,3946.7,0.3549]
[1758851649170,0.0253,3946.9,3946.8,0.81065]
[1758851651469,0.3507,3947.9,3947.6,0.3549]
[1758851651777,0.3287,3947.8,3947.1,0.265]
[1758851652167,0.45564,3947.8,3947.1,0.72071]
[1758851652369,0.3287,3947.7,3947.1,0.72071]
[1758851652570,0.3287,3947.8,3947.3,0.45569]
[1758851652771,0.47764,3947.9,3947.4,0.3549]
[1758851652966,0.3287,3947.7,3947.1,0.72071]
[1758851653382,0.3287,3947.7,3947.0,0.4867]
[1758851653780,0.3287,3947.8,3946.8,0.265]
[1758851653980,0.3287,3947.8,3946.7,0.265]
[1758851654376,0.3287,3947.4,3946.7,0.72076]
[1758851655279,0.3287,3947.4,3946.8,0.45574]
[1758851655482,0.3287,3947.4,3947.1,0.45572]
[1758851655681,0.59638,3947.5,3946.7,0.72076]
[1758851655883,0.88245602,3947.4,3946.7,0.72076]
[1758851656081,0.3287,3947.4,3946.7,0.72076]
[1758851656282,0.59638,3947.5,3946.7,0.45576]
[1758851656477,0.55366118,3947.4,3946.7,0.45576]
[1758851656678,0.59638,3947.5,3946.9,0.3549]
[1758851656976,0.3287,3947.0,3946.9,0.3549]
[1758851657273,0.3287,3947.4,3947.0,0.45573]
[1758851657474,0.3287,3947.4,3947.1,0.3549]
[1758851657674,0.59638,3947.5,3947.1,0.3549]
[1758851657879,0.3287,3947.4,3947.1,0.3549]
[1758851658280,0.773,3947.2,3947.1,0.593]
[1758851658877,0.773,3947.2,3947.1,0.2381]
[1758851659574,0.773,3947.2,3946.8,0.45574]
[1758851659771,0.3287,3947.1,3946.8,0.81064]
[1758851659976,0.5472,3946.9,3946.8,1.04874]
[1758851660175,0.2185,3946.9,3946.8,1.28484]
[1758851660384,0.2185,3947.1,3947.0,0.45572]
[1758851660582,0.773,3947.1,3947.0,0.69382]
[1758851660985,0.773,3947.1,3947.0,1.04872]
[1758851661380,0.773,3947.1,3947.0,1.28482]
[1758851661690,0.2185,3947.1,3947.0,1.41662]
[1758851663691,0.0084,3947.5,3947.3,0.92989]
[1758851663992,0.4443,3947.8,3947.7,0.69375]
[1758851664184,1.3265426,3947.8,3947.7,1.04865]
[1758851664384,1.3265426,3947.8,3947.7,0.2381]
[1758851664689,1.3265426,3947.8,3947.7,0.593]
[1758851664989,1.3265426,3947.8,3947.7,1.28475]
[1758851666592,0.9978426,3947.8,3947.7,1.28475]
[1758851666794,0.7720426,3947.8,3947.7,1.28475]
[1758851667389,1.3265426,3947.8,3947.7,1.28475]
[1758851667696,1.3265426,3947.8,3947.7,0.8291]
[1758851670290,0.3233,3947.7,3947.1,0.3229]
[1758851670490,0.788,3947.5,3947.4,1.24648]
[1758851670695,1.3415426,3947.5,3947.4,1.24648]
[1758851671194,1.3415426,3947.5,3947.4,0.7908]
[1758851671403,0.4647,3946.9,3946.8,0.45574]
[1758851671697,1.3415426,3946.9,3946.8,1.24654]
[1758851671894,1.0182426,3946.9,3946.8,1.24654]
[1758851673697,1.3415426,3946.9,3946.8,1.24654]
[1758851674298,0.5535426,3946.9,3946.8,1.24654]
[1758851674501,1.10872967,3947.3,3947.2,1.24651]
[1758851674997,1.34402967,3947.3,3947.2,1.24651]
[1758851676298,0.55602967,3947.3,3947.2,1.24651]
[1758851678393,0.022,3947.9,3947.8,0.77854]
[1758851678598,0.0111,3948.4,3948.3,1.24638]
[1758851678996,0.788,3949.3,3949.2,0.2315]
[1758851679407,0.788,3949.3,3949.2,1.00988]
[1758851679700,0.788,3949.3,3949.2,0.5544]
[1758851680198,2.11608035,3949.5,3949.4,0.2364]
[1758851680199,0.2294,3949.5,3949.4,0.2364]
[1758851680390,0.6044,3949.5,3949.1,0.77839]
[1758851680593,0.6044,3949.5,3949.1,1.00989]
[1758851680594,0.5527,3949.2,3949.1,1.00989]
[1758851680895,0.3233,3949.1,3948.6,1.04344]
[1758851681100,0.2294,3948.7,3948.6,1.51134]
[1758851681796,0.2294,3948.9,3948.8,0.45552]
[1758851682109,0.2294,3948.9,3948.8,0.92342]
[1758851682298,0.2294,3948.9,3948.8,0.4679]
[1758851682499,0.2294,3948.9,3948.8,0.7908]
[1758851683001,0.3233,3949.1,3949.0,0.7908]
[1758851683002,0.5527,3949.1,3949.0,0.7908]
[1758851683520,0.788,3949.1,3949.0,0.5544]
[1758851683722,0.788,3949.1,3948.0,1.25411001]
[1758851683723,0.2294,3948.1,3948.0,1.25411001]
[1758851683903,0.3233,3948.3,3948.2,0.45559]
[1758851684104,0.5527,3948.5,3948.4,1.24636]
[1758851685409,0.3486,3949.2,3948.9,0.3229]
[1758851685600,0.5527,3949.0,3948.9,0.5544]
[1758851685800,0.788,3949.0,3948.9,0.5544]
[1758851686000,0.788,3949.0,3948.9,0.2315]
[1758851686001,0.9277,3949.0,3948.9,0.2315]
[1758851686635,0.9277,3949.0,3948.5,0.92106]
[1758851686636,0.2294,3948.6,3948.5,1.24636]
[1758851687210,0.5527,3948.6,3948.5,0.7908]
[1758851687811,0.1397,3948.5,3948.2,0.45558]
[1758851688117,0.5527,3948.3,3948.2,1.24638]
[1758851688512,0.2294,3948.3,3948.2,1.24638]
[1758851689915,0.2294,3948.3,3948.2,0.7908]
[1758851690118,0.3233,3948.6,3948.3,0.3229]
[1758851690320,0.1397,3949.0,3948.5,0.4679]
[1758851690516,0.55339942,3948.9,3948.8,0.7908]
[1758851692914,0.4647,3948.4,3948.3,0.2315]
[1758851693111,1.01809942,3948.4,3948.3,0.2315]
[1758851693611,1.34139942,3948.4,3948.3,0.2315]
[1758851694520,1.34139942,3948.4,3948.0,0.00770001]
[1758851694710,1.34139942,3948.4,3947.7,0.4965]
[1758851694711,0.5527,3947.8,3947.7,0.4965]
[1758851694926,0.3233,3948.3,3948.2,0.4679]
[1758851695119,0.3233,3948.6,3948.2,0.7908]
[1758851695413,0.55351599,3948.5,3948.3,0.3229]
[1758851695612,0.55351599,3948.5,3948.4,0.7908]
[1758851696306,0.78291599,3948.5,3948.4,0.7908]
[1758851696511,1.10621599,3948.5,3948.4,0.7908]
[1758851697914,1.34151599,3948.5,3948.4,0.4679]
[1758851699311,1.34151599,3948.5,3948.4,0.7908]
[1758851700425,1.34151599,3948.5,3948.0,0.1426]
[1758851700426,1.92867599,3948.5,3947.9,0.349]
[1758851700618,0.2195,3947.6,3947.5,1.23677]
[1758851700814,0.5697,3947.8,3947.7,0.45565]
[1758851701014,0.5697,3947.8,3947.7,1.23675]
[1758851701215,0.3502,3948.3,3947.7,0.4321]
[1758851701420,0.55366589,3948.2,3948.1,0.7811]
[1758851701718,1.00406589,3948.2,3948.1,0.7811]
[1758851701922,0.2195,3947.8,3947.7,1.01895]
[1758851702124,0.8006,3947.8,3947.7,1.01895]
[1758851702318,0.8006,3947.8,3947.7,1.23675]
[1758851703022,0.2195,3947.8,3947.7,1.23675]
[1758851703715,0.2195,3947.8,3947.0,1.28192]
[1758851703716,0.8006,3947.8,3947.3,0.349]
[1758851703924,0.781,3947.5,3947.4,1.25348]
[1758851704126,0.781,3947.9,3947.8,0.2251]
[1758851704327,1.33532728,3947.9,3947.8,0.2251]
[1758851705222,1.33532728,3947.9,3947.8,1.25344]
[1758851705223,0.78492728,3947.9,3947.8,1.25344]
[1758851705522,0.55432728,3947.9,3947.8,1.25344]
[1758851706922,0.55432728,3947.9,3947.8,0.2251]
[1758851706923,1.33532728,3947.9,3947.8,0.2251]
[1758851707122,0.99762728,3947.9,3947.5,0.265]
[1758851707323,0.5683,3947.6,3947.5,1.51847]
[1758851707522,1.12262728,3947.6,3947.5,1.51847]
[1758851708919,1.12262728,3947.6,3947.5,0.7978]
[1758851709223,1.33532728,3947.6,3947.5,0.7978]
[1758851710422,1.33532728,3947.6,3947.5,0.4584]
[1758851710626,1.33532728,3947.6,3947.1,0.2251]
[1758851710627,0.781,3947.2,3947.1,0.2251]
[1758851710825,1.33532728,3947.2,3947.1,0.2251]
[1758851711329,1.33532728,3947.2,3947.1,0.7978]
[1758851712223,1.33532728,3947.2,3947.0,0.45572]
[1758851712526,1.33532728,3947.1,3947.0,0.68082]
[1758851713530,0.4433,3946.8,3946.7,0.45576]
[1758851713824,0.4433,3946.8,3946.4,40.8]
[1758851713825,0.2306,3946.1,3946.0,1.25365]
[1758851714034,0.5835,3946.5,3946.4,0.6809]
[1758851714226,1.47644026,3946.5,3946.4,0.6809]
[1758851715126,0.55524026,3946.5,3946.4,1.2536]
[1758851715320,0.4433,3946.9,3946.8,0.2251]
[1758851715531,0.78514496,3946.9,3946.8,0.7978]
[1758851716230,1.33554496,3946.9,3946.8,0.2251]
[1758851716729,0.99784496,3946.9,3946.1,0.3394]
[1758851716929,0.5683,3946.2,3946.1,1.25363]
[1758851717125,0.5683,3946.2,3946.1,1.51863]
[1758851717327,0.781,3946.6,3946.5,0.91418]
[1758851717525,1.33531927,3946.6,3946.5,1.25358]
[1758851718231,0.781,3946.6,3946.5,1.25358]
[1758851718434,0.5683,3946.6,3946.5,1.25358]
[1758851720039,0.781,3946.6,3946.5,1.25358]
[1758851720829,0.781,3947.0,3946.9,1.25354]
[1758851721025,1.33698544,3947.0,3946.9,1.25354]
[1758851721638,0.55598544,3947.0,3946.9,1.25354]
[1758851722034,0.781,3947.4,3947.3,0.7978]
[1758851722241,1.79262171,3947.4,3947.3,0.2251]
[1758851722436,1.79262171,3947.4,3947.0,0.45572]
[1758851722437,1.33694171,3947.4,3947.0,0.45572]
[1758851722644,0.5683,3947.1,3947.0,1.25352]
[1758851722840,1.12424171,3947.1,3947.0,1.25352]
[1758851723042,1.33694171,3947.1,3947.0,1.25352]
[1758851723238,1.33694171,3947.1,3946.6,0.3394]
[1758851723439,0.55594171,3947.0,3946.9,0.45574]
[1758851723640,0.3377,3947.3,3947.2,0.7978]
[1758851723941,0.3377,3947.3,3947.0,0.133]
[1758851723942,0.2306,3947.4,3947.3,1.25349]
[1758851724344,0.55607183,3947.4,3947.3,1.25349]
[1758851724539,0.3377,3948.0,3947.9,0.7978]
[1758851724736,1.12439386,3948.0,3947.9,0.7978]
[1758851725739,0.55609386,3948.0,3947.9,0.7978]
[1758851728249,0.78669386,3948.0,3947.9,1.0628]
[1758851730949,1.11249386,3948.0,3947.9,1.0628]
[1758851731275,0.55609386,3948.0,3947.9,1.0628]
[1758851731444,2.27595,3951.8,3947.9,1.0628]
[1758851731445,0.3258,3949.4,3949.3,1.21876]
[1758851731644,0.3258,3949.4,3948.5,0.1407]
[1758851731645,0.5534,3949.5,3949.4,0.7633]
[1758851731947,0.5534,3949.5,3949.0,0.45549]
[1758851731948,0.4556,3949.2,3949.0,0.45549]
[1758851732146,0.3258,3948.7,3948.3,0.3202]
[1758851732452,0.9166,3948.5,3948.4,0.264]
[1758851732846,0.9166,3948.5,3948.4,0.4899]
[1758851733448,0.9166,3948.5,3948.4,1.0273]
[1758851734558,0.9166,3948.5,3948.4,0.7633]
[1758851734755,0.9166,3948.5,3948.4,0.7071]
[1758851735858,0.2276,3948.5,3948.4,1.0273]
[1758851739865,0.2276,3948.5,3947.7,40.8]
[1758851739866,0.1352,3948.0,3947.7,40.8]
[1758851740070,0.7814,3947.8,3947.7,41.57585]
[1758851740269,0.2276,3947.8,3947.7,41.83985]
[1758851740473,0.2276,3947.8,3947.7,1.48295]